bitfinex/quotes_SOLUSD_20240809
["timestamp","ask_amount","ask_price","bid_price","bid_amount"]
[1723199031639,43.29,156.0,155.93,16.0326]
[1723199032048,43.29,156.03,155.94,1.26688399]
[1723199032346,6.4091,156.03,155.97,6.4112]
[1723199032670,43.29,156.01,155.92,16.0335]
[1723199032963,43.29,156.01,155.95,6.4122]
[1723199033267,6.4091,156.03,155.97,6.4114]
[1723199033472,43.29,156.04,155.96,6.4118]
[1723199033765,43.29,156.04,155.96,6.4117]
[1723199033766,26.4094,156.03,155.96,6.4117]
[1723199033961,6.4094,156.02,155.96,6.4117]
[1723199034133,6.4098,156.01,155.96,6.4117]
[1723199034339,6.4098,156.01,155.95,16.0306]
[1723199034537,6.4098,156.01,155.95,22.4428]
[1723199034964,20.0,156.03,155.95,16.0306]
[1723199035146,20.0,156.03,155.95,22.4428]
[1723199035147,43.29,156.01,155.95,22.4428]
[1723199035463,49.6998,156.01,155.96,6.4118]
[1723199035654,49.6998,156.01,155.95,16.0306]
[1723199035845,6.4103,156.0,155.95,16.0306]
[1723199036046,43.29,156.01,155.91,16.034]
[1723199036271,6.4109,155.99,155.93,6.413]
[1723199036762,6.411,155.98,155.92,6.4133]
[1723199036941,6.4123,155.95,155.87,16.038]
[1723199037262,6.4119,155.97,155.87,16.038]
[1723199037467,43.29,155.98,155.87,16.038]
[1723199037681,43.29,155.98,155.9,16.0356]
[1723199037840,43.29,155.98,155.92,6.4135]
[1723199038047,6.412,155.96,155.9,22.4495]
[1723199038261,43.29,155.98,155.9,16.0356]
[1723199038570,43.29,155.98,155.85,1.2825416]
[1723199038571,49.7002,156.0,155.94,6.4123]
[1723199038775,26.4107,155.99,155.93,22.4451]
[1723199039063,20.0,155.99,155.93,16.032]
[1723199039470,20.0,155.99,155.94,6.4126]
[1723199039651,43.29,156.0,155.93,22.4447]
[1723199039840,6.411,155.98,155.93,16.032]
[1723199040037,6.4094,156.02,155.96,22.4414]
[1723199040238,26.4099,156.01,155.96,16.0296]
[1723199040463,43.29,156.03,155.96,16.0296]
[1723199040772,6.4099,156.01,155.96,16.0296]
[1723199041066,6.4102,156.0,155.96,16.0296]
[1723199041770,6.4099,156.01,155.96,16.0296]
[1723199042142,43.29,156.03,155.96,16.0296]
[1723199042359,6.4103,156.0,155.94,6.4126]
[1723199042860,6.4103,156.0,155.95,6.4122]
[1723199043253,6.4098,156.01,155.96,6.4118]
[1723199043455,6.4094,156.02,155.95,16.0304]
[1723199043646,43.29,156.03,155.97,7.69311481]
[1723199043841,43.29,156.06,155.98,16.0274]
[1723199044080,49.6978,156.06,156.01,6.4098]
[1723199044259,43.29,156.09,156.01,16.0245]
[1723199044578,49.6965,156.09,156.02,6.409]
[1723199044870,43.29,156.09,156.04,6.4085]
[1723199045053,6.5782,156.12,156.04,6.4085]
[1723199045054,6.4056,156.12,156.06,6.4076]
[1723199045259,38.1627,156.17,156.06,1.28075656]
[1723199045260,6.1463,156.17,156.06,1.28075656]
[1723199045466,6.1463,156.17,155.99,20.0]
[1723199045467,43.29,156.16,156.07,16.0181]
[1723199045669,43.29,156.16,156.0,21.28075656]
[1723199045670,43.29,156.13,156.03,16.022]
[1723199045878,43.29,156.1,155.98,1.28142109]
[1723199046073,43.29,156.1,155.96,38.6994]
[1723199046074,6.4068,156.09,156.03,6.4087]
[1723199046391,6.4069,156.08,156.02,22.4324]
[1723199046875,43.29,156.1,156.03,1.28148044]
[1723199047080,43.29,156.1,156.05,16.0203]
[1723199047263,43.29,156.13,156.05,17.30151016]
[1723199047458,49.6949,156.13,156.05,17.30151016]
[1723199047662,43.29,156.13,156.08,6.4069]
[1723199047880,43.29,156.13,156.05,16.0203]
[1723199048071,49.695,156.13,156.05,16.0203]
[1723199048676,49.695,156.13,156.08,6.4069]
[1723199049390,43.29,156.13,156.08,6.4069]
[1723199049691,43.29,156.17,156.09,1.28117711]
[1723199049992,6.4024,156.19,156.14,6.4044]
[1723199050290,6.4024,156.19,156.13,6.4048]
[1723199050492,44.0940129,156.24,156.14,16.0111]
[1723199050698,44.0940129,156.24,156.19,6.4022]
[1723199050985,6.4008,156.23,156.18,22.4096]
[1723199051194,0.8040129,156.24,156.22,6.4011]
[1723199051493,0.8040129,156.24,156.15,1.280408]
[1723199051494,0.8040129,156.24,156.21,16.0037]
[1723199051871,0.8040129,156.24,156.15,1.27791907]
[1723199052189,0.8040129,156.24,156.22,6.4011]
[1723199052394,0.8040129,156.24,156.22,6.4012]
[1723199052694,0.8040129,156.24,156.2,16.005]
[1723199052864,44.0940129,156.24,156.16,16.0083]
[1723199053185,1.60031761,156.23,156.16,16.0083]
[1723199053389,43.29,156.21,156.14,15.196]
[1723199053593,6.4024,156.2,156.14,6.4044]
[1723199053890,43.29,156.21,156.15,16.0098]
[1723199054389,43.29,156.21,156.18,16.0071]
[1723199054698,49.6918,156.21,156.14,16.0103]
[1723199054867,1.60080865,156.2,156.1,16.0147]
[1723199055068,43.29,156.21,156.09,1.28084684]
[1723199055287,6.4012,156.23,156.17,6.4031]
[1723199055488,20.0,156.22,156.08,22.2111]
[1723199055685,43.29,156.19,156.14,6.4043]
[1723199055892,43.29,156.19,156.15,6.4039]
[1723199056092,20.0,156.22,156.15,16.0102]
[1723199056398,21.60074802,156.22,156.15,16.0102]
[1723199056574,43.29,156.21,156.15,16.0102]
[1723199056775,49.6917,156.21,156.15,22.4142]
[1723199056980,43.29,156.21,156.17,6.4031]
[1723199057473,0.8040129,156.24,156.22,6.4008]
[1723199057894,0.8040129,156.24,156.23,6.4008]
[1723199058599,0.8040129,156.24,156.23,7.68075665]
[1723199058802,0.8040129,156.24,156.23,51.4008]
[1723199059104,0.8040129,156.24,156.23,6.4008]
[1723199059710,0.8040129,156.24,156.23,7.68053197]
[1723199060001,0.8040129,156.24,156.23,51.4008]
[1723199060301,43.29,156.34,156.23,51.4008]
[1723199060302,43.29,156.37,156.33,6.3966]
[1723199060525,43.29,156.38,156.24,32.0006]
[1723199060733,43.29,156.35,156.28,15.9969]
[1723199061015,6.3981,156.3,156.25,15.9998]
[1723199061214,43.29,156.32,156.2,48.107]
[1723199061426,43.29,156.32,156.25,6.3999]
[1723199061614,6.3976,156.31,156.25,6.3999]
[1723199061794,43.29,156.32,156.27,6.3991]
[1723199061997,43.29,156.32,156.24,16.0]
[1723199062201,43.29,156.35,156.27,15.9974]
[1723199062429,44.88943172,156.35,156.28,6.3984]
[1723199062613,16.5983129,156.39,156.29,15.9949]
[1723199062920,16.5983129,156.39,156.2,48.107]
[1723199062921,6.3974,156.32,156.26,15.9988]
[1723199063122,1.59969891,156.37,156.26,15.9988]
[1723199063332,6.397,156.33,156.26,15.9988]
[1723199063521,6.3963,156.34,156.26,15.9988]
[1723199064025,49.6859,156.35,156.28,15.996]
[1723199064532,49.6859,156.35,156.29,6.3979]
[1723199064703,1.59939186,156.37,156.24,32.0004]
[1723199064704,1.59941177,156.34,156.24,32.0004]
[1723199065028,6.3959,156.35,156.27,15.9971]
[1723199065212,1.59951685,156.38,156.3,15.9948]
[1723199065416,1.59951685,156.38,156.33,15.9915]
[1723199065417,43.29,156.38,156.33,15.9915]
[1723199065724,0.8040129,156.39,156.33,15.9915]
[1723199065926,0.8040129,156.39,156.35,22.3846]
[1723199066230,0.8040129,156.39,156.35,15.9888]
[1723199066819,0.8040129,156.39,156.29,31.9913]
[1723199066820,0.8040129,156.39,156.32,15.9927]
[1723199067035,1.59917126,156.38,156.32,22.3897]
[1723199067240,0.8040129,156.39,156.32,15.9927]
[1723199067401,0.8040129,156.39,156.37,6.395]
[1723199067606,0.8040129,156.39,156.35,15.9897]
[1723199067902,0.8040129,156.39,156.37,15.9867]
[1723199068098,0.8040129,156.39,156.37,22.3816]
[1723199068303,6.54295774,156.49,156.44,22.3723]
[1723199068304,6.3903,156.49,156.44,22.3723]
[1723199068527,43.29,156.52,156.44,15.9802]
[1723199068729,10.020814,156.54,156.46,6.391]
[1723199068914,53.310814,156.54,156.44,15.9802]
[1723199069107,43.29,156.54,156.44,15.9802]
[1723199069310,43.29,156.51,156.38,6.425]
[1723199069503,43.29,156.48,156.4,6.3935]
[1723199069908,43.29,156.48,156.41,6.3934]
[1723199070111,6.3914,156.46,156.41,6.3934]
[1723199070318,6.3913,156.47,156.41,6.3933]
[1723199070525,43.29,156.5,156.41,15.9835]
[1723199070710,21.59812682,156.49,156.41,15.9835]
[1723199071214,6.3914,156.46,156.41,15.9835]
[1723199071433,1.59837916,156.48,156.33,48.2054]
[1723199071665,43.29,156.51,156.43,22.3738]
[1723199071929,43.29,156.54,156.47,6.3909]
[1723199072134,43.29,156.54,156.47,15.9765]
[1723199072312,6.3891,156.52,156.47,15.9765]
[1723199072636,6.3889,156.52,156.47,15.9765]
[1723199072809,6.389,156.52,156.47,22.3674]
[1723199073131,1.59775483,156.51,156.44,15.9804]
[1723199073433,0.8040129,156.55,156.53,6.3885]
[1723199073635,0.8040129,156.55,156.54,1.27721099]
[1723199073825,0.8040129,156.55,156.53,6.3885]
[1723199074209,0.8040129,156.55,156.53,7.6656375]
[1723199074403,0.8040129,156.55,156.52,15.9714]
[1723199074620,0.8040129,156.55,156.53,6.3883]
[1723199076163,0.8040129,156.55,156.53,6.3885]
[1723199076529,0.8040129,156.55,156.53,7.66607898]
[1723199076733,0.8040129,156.55,156.53,6.3885]
[1723199077257,0.8040129,156.55,156.53,7.66592213]
[1723199077433,0.8040129,156.55,156.54,1.2773922]
[1723199077770,0.8040129,156.55,156.54,6.3881]
[1723199078129,0.8040129,156.55,156.52,15.9714]
[1723199078431,0.8040129,156.55,156.54,6.3881]
[1723199079158,0.8040129,156.55,156.53,6.3884]
[1723199079359,0.8040129,156.55,156.52,22.3602]
[1723199079564,0.8040129,156.55,156.54,6.3881]
[1723199079744,0.8040129,156.55,156.54,51.3881]
[1723199079944,6.2655,156.68,156.63,6.3841]
[1723199080152,6.2655,156.68,156.64,6.3839]
[1723199080456,6.2655,156.68,156.62,15.9617]
[1723199080457,7.1856129,156.7,156.65,6.3835]
[1723199080660,0.8040129,156.7,156.62,15.9617]
[1723199081332,0.8040129,156.7,156.64,6.3838]
[1723199081537,0.8040129,156.7,156.65,6.3835]
[1723199081741,7.1857129,156.7,156.64,6.384]
[1723199081933,0.8040129,156.7,156.62,15.9617]
[1723199082254,0.8040129,156.7,156.65,15.9585]
[1723199082437,0.8040129,156.7,156.66,1.27647502]
[1723199082757,0.8040129,156.7,156.69,6.382]
[1723199082969,0.8040129,156.7,156.68,15.956]
[1723199083175,0.8040129,156.7,156.68,22.3383]
[1723199083540,0.8040129,156.7,156.69,6.382]
[1723199083749,0.8040129,156.7,156.69,51.382]
[1723199084151,0.8040129,156.7,156.69,6.382]
[1723199084756,0.8040129,156.7,156.69,51.382]
[1723199084969,0.8040129,156.7,156.69,6.382]
[1723199085157,0.8040129,156.7,156.69,51.382]
[1723199085467,0.8040129,156.7,156.69,6.382]
[1723199085680,0.8040129,156.7,156.69,51.382]
[1723199085974,0.8040129,156.7,156.69,6.382]
[1723199086287,0.8040129,156.7,156.66,6.3832]
[1723199086574,7.1856129,156.7,156.64,15.9593]
[1723199086771,7.1856129,156.7,156.64,22.3433]
[1723199087071,20.0,156.69,156.65,6.3836]
[1723199087281,7.1856129,156.7,156.65,6.3836]
[1723199087448,7.97832302,156.69,156.64,15.9593]
[1723199087649,1.5959775,156.69,156.64,15.9593]
[1723199087876,1.59600126,156.69,156.6,15.9633]
[1723199088056,1.59630009,156.69,156.6,15.9633]
[1723199088266,66.59630009,156.69,156.6,15.9633]
[1723199088666,6.3851,156.62,156.57,6.3869]
[1723199088866,1.59657241,156.66,156.56,15.9678]
[1723199089047,43.29,156.64,156.52,15.9713]
[1723199089252,6.3857,156.6,156.52,15.9713]
[1723199089579,6.3861,156.59,156.53,6.3884]
[1723199089873,6.3861,156.59,156.54,6.388]
[1723199090482,6.3857,156.6,156.54,6.388]
[1723199090671,6.3865,156.58,156.52,22.3602]
[1723199091158,20.0,156.57,156.49,6.3899]
[1723199091477,21.5970856,156.57,156.48,15.9755]
[1723199091659,45.0,156.56,156.48,15.9755]
[1723199091997,21.59764598,156.55,156.44,15.98]
[1723199092290,6.3893,156.51,156.44,15.98]
[1723199092587,20.0,156.5,156.44,15.98]
[1723199093184,1.59790971,156.49,156.42,6.3926]
[1723199093376,7.98894325,156.48,156.43,6.3924]
[1723199093698,6.3909,156.48,156.42,6.393]
[1723199094209,20.0,156.51,156.42,15.9816]
[1723199094858,6.3898,156.5,156.44,6.3918]
[1723199095056,20.0,156.49,156.45,15.9794]
[1723199095294,20.0,156.49,156.44,6.3922]
[1723199095584,20.0,156.49,156.44,6.3921]
[1723199095960,26.3903,156.49,156.44,6.3921]
[1723199096257,20.0,156.49,156.43,15.9807]
[1723199096459,43.29,156.49,156.4,15.9845]
[1723199096681,6.3919,156.45,156.4,22.3783]
[1723199096884,6.391,156.47,156.41,6.393]
[1723199097092,6.391,156.47,156.4,15.9845]
[1723199097256,20.0,156.46,156.4,15.9845]
[1723199097976,20.0,156.46,156.42,6.393]
[1723199098676,6.3921,156.45,156.4,22.3783]
[1723199098878,6.3925,156.44,156.39,6.3939]
[1723199099089,20.0,156.46,156.39,15.9847]
[1723199099292,20.0,156.48,156.42,15.9824]
[1723199099473,20.0,156.51,156.45,6.3917]
[1723199099792,49.9495,156.52,156.45,20.392]
[1723199100087,6.3899,156.5,156.45,20.392]
[1723199100271,49.9495,156.52,156.47,6.3909]
[1723199100272,6.6595,156.52,156.47,6.3909]
[1723199100482,6.6595,156.52,156.48,6.3905]
[1723199100665,6.3881,156.55,156.47,15.9768]
[1723199100865,44.88751375,156.56,156.44,15.9803]
[1723199101165,43.29,156.56,156.4,33.24625683]
[1723199101398,6.3873,156.56,156.51,6.3892]
[1723199101887,6.3874,156.56,156.51,6.3893]
[1723199102096,6.3873,156.56,156.51,6.3892]
[1723199102402,44.88735054,156.56,156.46,15.9775]
[1723199102563,6.3893,156.51,156.46,22.3688]
[1723199102766,1.59781231,156.5,156.46,15.9775]
[1723199103181,1.59781231,156.5,156.46,22.3688]
[1723199103388,1.59781231,156.5,156.43,15.9813]
[1723199103590,6.3901,156.49,156.44,6.3921]
[1723199103898,20.0,156.52,156.43,15.9813]
[1723199104191,43.29,156.5,156.43,15.9813]
[1723199104365,6.3906,156.48,156.43,22.3738]
[1723199104697,26.3893,156.52,156.47,6.3909]
[1723199104997,6.3893,156.51,156.47,6.3909]
[1723199105191,20.0,156.52,156.48,6.3905]
[1723199105368,20.0,156.52,156.47,6.3909]
[1723199105583,26.389,156.52,156.47,6.3909]
[1723199105972,6.3894,156.51,156.46,6.3913]
[1723199106198,6.3894,156.51,156.46,6.391]
[1723199106401,20.0,156.52,156.45,15.9788]
[1723199106602,20.0,156.52,156.47,15.9768]
[1723199106985,43.29,156.53,156.47,15.9768]
[1723199107287,49.5253,156.59,156.48,1.2777515]
[1723199107492,49.5253,156.59,156.52,15.9717]
[1723199107701,31.9114,156.69,156.44,31.9602]
[1723199107702,6.3853,156.61,156.56,6.387]
[1723199107902,6.3845,156.63,156.58,6.3864]
[1723199108078,6.3849,156.62,156.57,22.354]
[1723199108284,6.3854,156.61,156.55,6.3874]
[1723199108583,1.59683578,156.6,156.55,6.3876]
[1723199108782,55.7552,156.64,156.59,6.386]
[1723199108986,49.3712,156.64,156.56,15.9673]
[1723199109179,55.7553,156.64,156.59,6.3859]
[1723199109383,55.7553,156.64,156.58,6.3864]
[1723199109700,55.7553,156.64,156.59,6.3859]
[1723199110075,6.3846,156.63,156.58,6.3864]
[1723199110384,49.3712,156.64,156.58,6.3863]
[1723199110604,49.3712,156.64,156.53,15.9712]
[1723199110780,43.29,156.58,156.48,31.9523]
[1723199111303,43.29,156.58,156.54,6.3878]
[1723199111601,43.29,156.61,156.55,15.9689]
[1723199111910,6.0812,156.64,156.58,6.3864]
[1723199111911,6.3844,156.63,156.58,6.3864]
[1723199112207,55.7553,156.64,156.58,6.3864]
[1723199112382,15.9576,156.67,156.62,6.3844]
[1723199112383,43.29,156.67,156.62,6.3844]
[1723199112582,43.29,156.67,156.63,6.3844]
[1723199112974,12.7566,156.69,156.64,6.384]
[1723199113200,44.0940129,156.7,156.67,6.3825]
[1723199113507,44.0940129,156.7,156.67,6.3827]
[1723199113508,0.8040129,156.7,156.67,6.3827]
[1723199113686,0.8040129,156.7,156.64,15.9599]
[1723199114193,7.97839076,156.69,156.64,15.9599]
[1723199114392,6.3824,156.68,156.62,6.3848]
[1723199114700,44.0940129,156.7,156.62,6.3848]
[1723199114701,44.0940129,156.7,156.67,6.3827]
[1723199115204,7.33290887,156.7,156.66,22.3408]
[1723199115409,7.33290887,156.7,156.66,15.9578]
[1723199115706,1.59576472,156.69,156.62,15.9617]
[1723199115878,44.0940129,156.7,156.65,6.3833]
[1723199116083,44.0940129,156.7,156.65,15.9591]
[1723199116397,0.8040129,156.7,156.69,6.382]
[1723199116599,0.8040129,156.7,156.69,51.382]
[1723199116801,0.8040129,156.7,156.69,6.382]
[1723199117878,0.8040129,156.7,156.69,51.382]
[1723199118189,0.8040129,156.7,156.69,26.382]
[1723199118593,0.8040129,156.7,156.69,6.382]
[1723199118982,0.8040129,156.7,156.68,22.3383]
[1723199119177,0.8040129,156.7,156.68,15.956]
[1723199119384,0.8040129,156.7,156.69,6.382]
[1723199121314,0.8040129,156.7,156.64,47.8782]
[1723199121890,0.8040129,156.7,156.64,15.9596]
[1723199122193,22.40003711,156.7,156.64,15.9596]
[1723199122510,22.40003711,156.7,156.65,6.3836]
[1723199122721,20.8040129,156.7,156.64,15.9596]
[1723199123012,6.3821,156.69,156.64,15.9596]
[1723199123216,44.8860185,156.68,156.62,6.3848]
[1723199123392,44.8860185,156.68,156.6,15.9634]
[1723199123393,43.29,156.68,156.6,15.9634]
[1723199123596,43.29,156.68,156.64,6.3839]
[1723199123803,43.29,156.68,156.65,6.3835]
[1723199124009,0.8040129,156.7,156.66,15.9571]
[1723199124216,20.8040129,156.7,156.66,15.9571]
[1723199124591,20.8040129,156.7,156.67,6.3826]
[1723199124992,0.8040129,156.7,156.66,15.9571]
[1723199125194,20.8040129,156.7,156.66,15.9571]
[1723199125413,20.8040129,156.7,156.66,22.3402]
[1723199125611,20.8040129,156.7,156.66,15.9571]
[1723199125814,0.8040129,156.7,156.69,6.382]
[1723199128790,0.8040129,156.7,156.68,15.9551]
[1723199128995,0.8040129,156.7,156.62,31.9228]
[1723199128996,0.8040129,156.7,156.65,6.3836]
[1723199129298,0.8040129,156.7,156.64,15.9591]
[1723199129495,0.8040129,156.7,156.67,15.9566]
[1723199129699,0.8040129,156.7,156.68,6.3823]
[1723199129917,0.8040129,156.7,156.69,6.382]
[1723199130125,7.1858129,156.7,156.65,6.3836]
[1723199130294,7.1858129,156.7,156.64,22.344]
[1723199130499,6.3826,156.68,156.57,31.9331]
[1723199130829,0.8040129,156.7,156.58,1.2769407]
[1723199131013,0.8040129,156.7,156.68,6.3823]
[1723199131330,0.8040129,156.7,156.69,22.337]
[1723199132200,0.8040129,156.7,156.61,31.9253]
[1723199132403,0.8040129,156.7,156.69,22.337]
[1723199132615,0.8040129,156.7,156.69,15.955]
[1723199132830,0.8040129,156.7,156.69,22.337]
[1723199133718,0.8040129,156.7,156.69,67.337]
[1723199134111,0.8040129,156.7,156.69,22.337]
[1723199134517,0.8040129,156.7,156.65,15.9581]
[1723199134716,0.8040129,156.7,156.67,6.3828]
[1723199135033,7.1857129,156.7,156.65,22.3417]
[1723199135204,0.8040129,156.7,156.65,15.9581]
[1723199135534,6.382,156.69,156.65,15.9581]
[1723199135734,6.382,156.69,156.62,22.3463]
[1723199135735,1.59595819,156.69,156.62,22.3463]
[1723199135905,43.29,156.68,156.55,259.0]
[1723199136099,6.4234,156.69,156.53,31.9417]
[1723199136100,43.29,156.65,156.53,31.9417]
[1723199136423,21.5965481,156.64,156.6,6.3852]
[1723199136606,21.5965481,156.64,156.62,15.9619]
[1723199136607,20.0,156.64,156.62,15.9619]
[1723199136811,43.29,156.66,156.51,1.2765941]
[1723199136812,20.0,156.65,156.51,1.2765941]
[1723199137111,20.0,156.65,156.59,15.965]
[1723199137309,43.29,156.63,156.56,15.9681]
[1723199137501,43.29,156.63,156.58,6.3864]
[1723199138231,43.29,156.63,156.59,6.386]
[1723199138829,49.6744,156.63,156.58,6.3864]
[1723199139028,44.88660905,156.63,156.56,15.9681]
[1723199139262,43.29,156.6,156.52,15.9716]
[1723199139436,43.29,156.6,156.55,6.3876]
[1723199139437,1.59690964,156.59,156.55,6.3876]
[1723199139642,43.29,156.63,156.61,6.3852]
[1723199139938,43.29,156.63,156.6,15.9632]
[1723199140105,43.29,156.63,156.57,15.9669]
[1723199140431,43.29,156.63,156.55,31.9386]
[1723199140432,43.29,156.63,156.6,6.3856]
[1723199140604,43.29,156.66,156.61,15.9623]
[1723199141025,49.7134,156.69,156.63,15.9604]
[1723199141327,49.7134,156.69,156.59,15.9642]
[1723199141535,49.6736,156.66,156.61,6.3852]
[1723199141710,49.6736,156.66,156.59,15.9642]
[1723199141711,43.29,156.66,156.59,15.9642]
[1723199142106,43.29,156.66,156.63,6.3841]
[1723199142308,6.4234,156.69,156.63,6.3841]
[1723199142309,43.29,156.69,156.66,6.383]
[1723199142540,20.0,156.68,156.66,6.383]
[1723199143050,20.0,156.68,156.6,15.9638]
[1723199143252,6.3841,156.64,156.6,15.9638]
[1723199143449,6.3837,156.65,156.6,22.3494]
[1723199143654,43.29,156.66,156.65,6.3836]
[1723199143954,6.382,156.69,156.61,22.3481]
[1723199143955,43.29,156.69,156.61,22.3481]
[1723199144127,43.29,156.66,156.55,31.9386]
[1723199144458,43.29,156.66,156.5,38.4785514]
[1723199144459,43.29,156.66,156.58,15.966]
[1723199144755,43.29,156.66,156.62,6.3848]
[1723199144960,43.29,156.66,156.63,6.3844]
[1723199145131,43.29,156.66,156.63,15.9604]
[1723199145330,43.29,156.66,156.63,22.3448]
[1723199145553,43.29,156.66,156.63,15.9604]
[1723199146151,43.29,156.66,156.61,6.3849]
[1723199146358,43.29,156.66,156.62,6.3848]
[1723199146538,43.29,156.66,156.6,15.9639]
[1723199147060,20.0,156.68,156.64,6.3836]
[1723199147430,20.0,156.68,156.65,6.3836]
[1723199147633,43.29,156.69,156.66,6.3832]
[1723199147855,0.8040129,156.7,156.66,6.3832]
[1723199148060,0.8040129,156.7,156.66,15.9574]
[1723199148358,0.8040129,156.7,156.67,6.3825]
[1723199148727,0.8040129,156.7,156.69,22.337]
[1723199148948,0.8040129,156.7,156.65,15.9582]
[1723199149153,43.29,156.69,156.62,31.9234]
[1723199149736,43.29,156.69,156.63,6.3841]
[1723199149953,6.3826,156.68,156.63,6.3841]
[1723199150141,6.3829,156.67,156.62,22.3466]
[1723199150341,6.3824,156.68,156.63,6.3844]
[1723199150546,43.29,156.69,156.62,15.9619]
[1723199150547,43.29,156.69,156.65,6.3835]
[1723199150751,43.29,156.69,156.64,6.3837]
[1723199150958,43.29,156.69,156.64,15.9593]
[1723199151254,6.3825,156.68,156.58,31.9315]
[1723199151436,44.88576762,156.69,156.64,15.96]
[1723199151437,51.26786762,156.69,156.64,15.96]
[1723199151638,49.6721,156.69,156.64,22.3439]
[1723199151858,43.29,156.69,156.6,15.9632]
[1723199152047,6.3828,156.67,156.62,6.3845]
[1723199152241,49.6733,156.66,156.61,6.3852]
[1723199152452,43.29,156.66,156.6,15.9632]
[1723199152652,20.0,156.65,156.6,15.9632]
[1723199152860,43.29,156.69,156.64,15.9592]
[1723199153039,20.0,156.68,156.67,6.3828]
[1723199153235,0.8040129,156.7,156.68,6.3823]
[1723199153458,0.8040129,156.7,156.68,15.9553]
[1723199153765,35.24,156.69,156.68,15.9553]
[1723199154638,35.24,156.69,156.68,22.3377]
[1723199155353,35.24,156.69,156.68,15.9553]
[1723199156365,35.24,156.69,156.65,6.3833]
[1723199156537,35.24,156.67,156.65,6.3833]
[1723199157243,35.24,156.67,156.61,15.9631]
[1723199157461,35.24,156.67,156.63,6.3844]
[1723199157757,35.24,156.65,156.62,6.3847]
[1723199158355,35.24,156.65,156.61,15.9631]
[1723199158541,35.24,156.63,156.61,15.9631]
[1723199158742,35.24,156.63,156.53,7.68521387]
[1723199158743,35.24,156.63,156.57,15.9665]
[1723199159068,35.24,156.61,156.57,15.9665]
[1723199159651,35.24,156.61,156.6,15.9642]
[1723199159854,35.24,156.65,156.57,31.9335]
[1723199160057,35.24,156.65,156.58,1.27692319]
[1723199160266,35.24,156.65,156.58,65.0]
[1723199160437,35.24,156.65,156.61,15.963]
[1723199160649,35.24,156.63,156.61,15.963]
[1723199160866,35.24,156.63,156.58,15.9659]
[1723199161051,35.24,156.61,156.58,15.9659]
[1723199161245,35.24,156.63,156.62,6.3846]
[1723199161450,35.24,156.65,156.64,6.384]
[1723199161675,35.24,156.65,156.64,22.3437]
[1723199161983,6.3845,156.63,156.58,22.3523]
[1723199162270,35.24,156.6,156.58,15.9659]
[1723199162446,35.24,156.6,156.58,22.3523]
[1723199162647,35.24,156.6,156.59,6.3861]
[1723199163741,43.12,156.64,156.59,6.3861]
[1723199164054,49.5056,156.61,156.56,6.3872]
[1723199164260,1.59683423,156.6,156.56,6.3872]
[1723199164556,7.98263423,156.6,156.55,15.9691]
[1723199164775,6.3861,156.59,156.55,15.9691]
[1723199164958,1.59696512,156.58,156.54,6.3878]
[1723199165155,6.3869,156.57,156.52,22.361]
[1723199165356,43.12,156.58,156.53,6.3884]
[1723199165560,20.0,156.57,156.54,6.3879]
[1723199166276,43.12,156.55,156.48,15.9755]
[1723199166578,43.12,156.52,156.48,6.3905]
[1723199167261,43.12,156.52,156.47,6.3909]
[1723199167672,6.3906,156.48,156.43,6.3924]